[Event "Marshall CC U2400 03-2025"]
[Site "New York"]
[Date "2025.03.22"]
[Round "2.5"]
[White "Zhao, Austin"]
[Black "Zhang, Andrew"]
[Result "1-0"]
[Annotator "TA"]
[ECO "D97"]
[WhiteElo "1819"]
[BlackElo "2009"]
[PlyCount "146"]
[EventDate "2025.03.20"]
[EventType "swiss"]
[EventCountry "USA"]
[SourceTitle "playchess.com"]
[Source "ChessBase"]
[SourceQuality "1"]
[TimeControl "5400+30"]

{[%evp 15,146,47,69,52,117,109,110,80,85,89,91,83,83,81,75,69,71,71,81,47,72,62,107,73,78,25,30,22,103,83,111,32,38,45,71,74,71,70,83,79,82,57,83,85,85,79,79,77,84,62,97,77,77,77,120,103,108,114,137,99,135,129,160,161,204,203,264,260,262,263,367,341,356,325,287,147,205,205,274,252,235,235,296,273,697,677,897,900,833,798,1102,1097,915,319,1056,1044,945,710,710,710,703,696,693,684,684,683,649,600,766,766,766,0,0,0,0,0,0,0,766,766,762,741,690,596,596,591,29978,0,29981,29982,29983,29983,29982]} 1. d4 {[%emt 0:00:11]} Nf6 {[%emt 0:00:03]} 2. c4 {[%emt 0:00:06]} g6 {[%emt 0:00:02]} 3. Nc3 {[%emt 0:00:07]} d5 {[%emt 0:00:03]} 4. Nf3 {[%emt 0:00:56]} Bg7 {[%emt 0:00:04]} 5. Qb3 {[%emt 0:03:52]} dxc4 {[%emt 0:03:48]} 6. Qxc4 {[%emt 0:00:20]} O-O {[%emt 0:03:13]} 7. e4 {[%emt 0:01:20]} c6 {[%emt 0:00:56]} 8. Be2 {[%emt 0:02:20] 8.Qb3 is vanishing.} Be6 {[%emt 0:01:53]} 9. Qd3 {[%emt 0:05:01] D97: Grünfeld: Russian System: 7 e4, replies other than 7...Bg4.} h6 {[%emt 0:05:30]} ({Black should try} 9... Bg4 $14) 10. O-O $16 {[%emt 0:01:35]} Nbd7 {[%emt 0:00:49]} 11. Bf4 {[%emt 0:02:37] White is better.} Nb6 {[%emt 0:02:04]} 12. Rfd1 {[%emt 0:11:41]} Bc4 {[%emt 0:03:50]} 13. Qc2 {[%emt 0:00:39]} Bxe2 {[%emt 0:00:17]} 14. Qxe2 {[%emt 0:00:07]} e6 $146 {[%emt 0:00:29]} (14... Nh5 15. Be3 Qd6 16. e5 Qe6 17. h3 f5 18. exf6 Rxf6 19. Ne5 Nf4 20. Qc2 Nbd5 {1-0 Bahamonde,A-Francia,F Santa Fe 1949 (1)}) 15. Rac1 {[%emt 0:07:20]} Re8 {[%emt 0:04:46]} 16. h3 {[%emt 0:10:14]} Qe7 {[%emt 0:01:40]} 17. Qc2 {[%emt 0:06:23]} a5 {[%emt 0:10:00]} 18. Be3 {[%emt 0:12:02]} Nbd7 {[%emt 0:05:47][%cal Bb6d7,Bd7f6,Bf6d5,Bd5c7][%mdl 32]} 19. Qd2 {[%emt 0:07:37][%cal Oe4e5]} Kh7 {[%emt 0:01:03]} 20. d5 {[%emt 0:02:02]} (20. b3 $16) 20... exd5 $11 {[%emt 0:01:58]} 21. exd5 {[%emt 0:00:14]} Nxd5 {[%emt 0:00:38]} (21... Rad8 $11) 22. Nxd5 $16 {[%emt 0:00:09]} cxd5 {[%emt 0:00:04]} 23. Qxd5 {[%emt 0:00:14]} (23. Rc7 $1 $16 Red8 24. Rxb7) 23... Nf6 {[%emt 0:00:36]} 24. Qb5 {[%emt 0:00:27]} Red8 {[%emt 0:05:23]} 25. Rxd8 {[%emt 0:08:08]} Rxd8 {[%emt 0:03:13]} 26. Qxa5 {[%emt 0:00:10] White is more active.} Nd5 {[%emt 0:04:37]} 27. Bc5 {[%emt 0:02:02]} Qd7 {[%emt 0:01:39]} 28. Qd2 {[%emt 0:05:46]} Nc7 {[%emt 0:04:22]} 29. Qxd7 {[%emt 0:01:20]} Rxd7 {[%emt 0:00:04] [#]} 30. Bd4 $1 {[%emt 0:01:10]} Ne6 {[%emt 0:01:30]} 31. Bxg7 {[%emt 0:00:27]} Kxg7 {[%emt 0:00:13][%mdl 4096] Endgame KRN-KRN. White is a pawn up.} 32. a4 {[%emt 0:02:55]} Nd4 {[%emt 0:01:26]} 33. Nxd4 {[%emt 0:00:27]} Rxd4 {[%emt 0:00:12] KR-KR. White is a pawn up.} 34. b3 {[%emt 0:02:38]} Rb4 {[%emt 0:00:47]} 35. Rc3 {[%emt 0:00:40]} f5 {[%emt 0:01:21]} 36. Kf1 {[%emt 0:00:26]} Kf6 {[%emt 0:00:32]} 37. Ke2 {[%emt 0:00:12]} Ke5 {[%emt 0:00:24]} 38. Kd3 {[%emt 0:01:16]} Kd5 {[%emt 0:01:15]} 39. Kc2 {[%emt 0:00:34]} Re4 {[%emt 0:03:58]} 40. Rd3+ {[%emt 0:00:35]} Kc5 {[%emt 0:00:43]} 41. Re3 $1 {[%emt 0:00:45]} Rf4 {[%emt 0:14:59]} 42. f3 {[%emt 0:00:26]} Rb4 {[%emt 0:02:18]} 43. Kc3 {[%emt 0:00:31]} Rb6 {[%emt 0:01:13]} 44. Re7 {[%emt 0:00:14]} Kd6 {[%emt 0:03:49]} 45. Re8 {[%emt 0:00:51]} ({White should play} 45. Rg7 $18 Ke5 46. a5 Rc6+ 47. Kb2 (47. Kb4 Kf4 $18)) 45... g5 {[%emt 0:00:36]} (45... Rc6+ $16 {keeps fighting.} 46. Kd3 Kd7) 46. Re2 $18 {[%emt 0:01:38]} Kd5 {[%emt 0:00:37]} 47. b4 {[%emt 0:00:34]} Rc6+ {[%emt 0:01:07]} 48. Kb3 {[%emt 0:00:47]} Kd4 {[%emt 0:00:45]} 49. Re7 {[%emt 0:00:35]} Kd3 $2 {[%emt 0:01:28]} (49... b6 50. b5 Rc3+ 51. Kb2 Rc4) 50. Rd7+ {[%emt 0:00:59]} (50. Rxb7 Rc3+ 51. Kb2 Rc2+ 52. Kb1 Rxg2 $18) 50... Ke2 {[%emt 0:00:08]} 51. Rxb7 {[%emt 0:00:16]} Kf2 {[%emt 0:00:04]} 52. Rf7 {[%emt 0:00:20]} f4 {[%emt 0:00:10]} 53. b5 {[%emt 0:00:23]} Rc1 {[%emt 0:00:07] [#]} 54. h4 $2 {[%emt 0:01:33]} (54. a5 $1 Rb1+ (54... Kxg2 55. b6) 55. Kc4 Rc1+ 56. Kd5) 54... Kxg2 $2 {[%emt 0:00:20]} (54... Rb1+ 55. Ka2 (55. Kc2 Rb4 $18) 55... Rb4) 55. hxg5 {[%emt 0:00:06]} hxg5 {[%emt 0:00:04]} 56. Rf5 {[%emt 0:00:07]} Kxf3 {[%emt 0:00:18]} 57. Rxg5 {[%emt 0:00:04]} Ke4 {[%emt 0:00:17]} 58. Rg8 {[%emt 0:00:34]} f3 {[%emt 0:00:31] [#]} 59. Rf8 $1 {[%emt 0:00:27]} Rb1+ {[%emt 0:00:57]} 60. Kc4 {[%emt 0:00:30]} Rc1+ {[%emt 0:01:10]} 61. Kb4 {[%emt 0:00:08]} Rb1+ {[%emt 0:00:19]} 62. Ka5 {[%emt 0:01:56]} Ke3 {[%emt 0:00:38]} 63. Re8+ $2 {[%emt 0:00:31]} (63. b6 $18 {Ka6 would kill now.} f2 64. Ka6 f1=Q+ 65. Rxf1 Rxf1 66. b7) 63... Kd4 $11 {[%emt 0:00:17]} 64. Rd8+ $2 {[%emt 0:00:22][%mdl 8192]} (64. Rf8 $11 Ke3 65. b6) 64... Ke3 $18 {[%emt 0:00:13]} 65. Re8+ {[%emt 0:00:05]} Kd4 {[%emt 0:00:07] ...f2 is the strong threat.} 66. Rf8 {[%emt 0:00:30]} Ke3 {[%emt 0:00:21]} 67. b6 {[%emt 0:01:07]} f2 {[%emt 0:00:06]} 68. Ka6 {[%emt 0:01:00] b7 would now be deadly.} f1=Q+ {[%emt 0:00:28]} 69. Rxf1 {[%emt 0:00:04]} Rxf1 {[%emt 0:00:04]} 70. b7 {[%emt 0:00:04]} Rb1 {[%emt 0:00:03] [#]} 71. Ka7 $2 {[%emt 0:00:05]} (71. a5 $1 {mates} Kf4 72. Ka7 Kg4 73. b8=Q (73. b8=R Rd1 $18) 73... Rh1 74. Qg8+ Kh3 75. a6 Rf1 76. Qb3+ Kg4 77. Qc4+ Rf4 78. Qxf4+ Kxf4 79. Kb6) 71... Kd4 $2 {[%emt 0:00:04][%mdl 8192]} (71... Ra1 $11) 72. a5 {[%emt 0:00:08][%cal Ba4a5,Ba5a6][%mdl 32]} Kc5 {[%emt 0:00:11]} 73. a6 {[%emt 0:00:07]} ({And not} 73. b8=R Rxb8 74. Kxb8 Kb5 $11) 73... Kd5 {[%emt 0:11:59] Weighted Error Value: White=0.27 (precise) /Black=0.44  Loses game:     	---       	Black=1      Missed win:     	White=1     	---        Mistake:       	White=3     	Black=4      Inaccurate:     	White=2     	Black=12     OK:         	White=19    	Black=14     Best:        	White=3     	Black=2      Strong:       	White=1     	---} 1-0

[Event "Marshall CC U2400 03-2025"]
[Site "New York"]
[Date "2025.03.22"]
[Round "2.6"]
[White "Li, Robert"]
[Black "Gutnik, Aleksandr"]
[Result "1-0"]
[Annotator "TA"]
[ECO "C10"]
[WhiteElo "1785"]
[BlackElo "1971"]
[PlyCount "109"]
[EventDate "2025.03.20"]
[EventType "swiss"]
[EventCountry "USA"]
[SourceTitle "playchess.com"]
[Source "ChessBase"]
[SourceQuality "1"]
[TimeControl "5400+30"]

{[%evp 10,109,67,86,75,66,66,45,52,40,91,84,113,99,86,106,122,157,145,72,85,96,91,82,92,91,92,72,109,75,154,88,81,51,73,65,55,22,22,12,200,60,110,112,120,97,129,66,75,68,56,0,84,0,0,0,0,0,0,0,91,87,141,141,141,141,141,141,158,158,248,174,240,178,137,0,228,139,176,162,161,141,153,141,140,140,303,303,350,345,347,331,326,319,312,303,754,689,1116,1095,5310,5306]} 1. e4 {[%emt 0:00:01]} e6 {[%emt 0:00:17]} 2. d4 {[%emt 0:00:07]} d5 {[%emt 0:00:08]} 3. Nc3 {[%emt 0:00:03]} dxe4 {[%emt 0:00:18]} 4. Nxe4 {[%emt 0:00:04]} Nf6 {[%emt 0:00:09]} 5. Nxf6+ {[%emt 0:00:09]} gxf6 {[%emt 0:00:11]} 6. Nf3 {[%emt 0:00:16]} Nc6 {[%emt 0:00:14] is now more promising than 6...b6. C10: French with 3 Nc3: Unusual Black 3rd moves and 3...dxe4.} 7. Be3 {[%emt 0:00:18]} Qd6 {[%emt 0:01:01]} 8. a3 {[%emt 0:00:19]} Bd7 {[%emt 0:02:23] White is slightly better.} 9. c4 {[%emt 0:00:09][%cal Bc2c4,Bc4c5][%mdl 32]} Ne7 {[%emt 0:01:39]} (9... O-O-O $14) 10. Bd3 $16 {[%emt 0:00:26]} Bc6 {[%emt 0:02:28]} 11. d5 $146 {[%emt 0:00:50]} (11. b4 a6 12. O-O b6 13. Qe2 Bg7 14. d5 Rd8 15. Rad1 Ba4 16. Rd2 f5 17. c5 Qxd5 18. Bxa6 {½-½ Birkholz,O (2064)-Rapport,J (2334) BL 1617 (Women) 2016 (10.4)}) 11... exd5 {[%emt 0:03:06]} 12. c5 {[%emt 0:00:08]} Qd8 {[%emt 0:04:50]} 13. Nd4 {[%emt 0:00:32][%mdl 1024] White has strong compensation.} Bd7 {[%emt 0:01:36]} 14. Qf3 {[%emt 0:04:30] White sacrificed a pawn} (14. O-O $142) 14... Bg7 {[%emt 0:02:39]} 15. O-O {[%emt 0:05:30]} O-O {[%emt 1:17:01]} 16. Qh5 {[%emt 1:25:08][%csl Gd3][%cal Rh5h7]} f5 {[%emt 0:00:00]} 17. Rad1 $40 {[%emt 0:00:00][%mdl 128] White goes for the king.} (17. Bxf5 Bxf5 18. Nxf5 Nxf5 19. Qxf5 c6) 17... c6 {[%emt 0:00:00]} 18. g3 {[%emt 0:00:00]} Qe8 {[%emt 0:00:00]} 19. Rfe1 {[%emt 0:00:00]} (19. Nxf5 $6 Nxf5 20. Bxf5 Bxf5 21. Qxf5 Qe6 $14) 19... f6 {[%emt 0:00:00]} (19... Bxd4 20. Bxd4 f6) 20. Qf3 {[%emt 0:02:00] White is much more active.} (20. Qh3 $142 $1) 20... Qf7 {[%emt 0:02:30]} 21. Bf4 {[%emt 0:00:00]} Ng6 {[%emt 0:00:00]} 22. Bxf5 {[%emt 0:00:00]} Ne5 {[%emt 0:00:00]} 23. Qb3 {[%emt 0:00:00]} Bxf5 {[%emt 0:00:00]} 24. Nxf5 {[%emt 0:00:00]} Qh5 $2 {[%emt 0:00:00] Black is weak on the dark squares} (24... Qd7 $11 25. Nd4 Rae8) 25. Bxe5 {[%emt 0:00:00]} (25. Nxg7 $18 Qf3 26. Re3 (26. Qxb7 Rab8 $16)) 25... Qxf5 {[%emt 0:00:00]} (25... fxe5 $14 26. Nxg7 (26. Qxb7 $2 Qxf5 27. Qxc6 Qxf2+ 28. Kh1 Qf3+ 29. Kg1 d4 $19) 26... Qf7) 26. Bd6 $1 {[%emt 0:00:00]} Rf7 {[%emt 0:00:00]} 27. Re2 {[%emt 0:00:00]} Bf8 {[%emt 0:00:00]} 28. Bxf8 {[%emt 0:00:00]} (28. Rde1 $16) 28... Raxf8 $14 {[%emt 0:00:00]} 29. Rde1 {[%emt 0:00:00]} Rd8 {[%emt 0:00:00]} 30. Re7 {[%emt 0:00:00]} (30. Qa4 $14) 30... Rd7 {[%emt 0:00:00] [#]} (30... Rxe7 $11 31. Rxe7 Rd7 32. Re8+ Kf7) 31. Rxf7 {[%emt 0:00:00]} (31. Re8+ $1 $16 Kg7 32. Qb4) 31... Kxf7 $16 {[%emt 0:00:00][%mdl 4096] Endgame KQR-KQR} 32. Qe3 {[%emt 0:00:00]} Kg7 {[%emt 0:00:00]} 33. Qe8 {[%emt 0:00:00]} d4 {[%emt 0:00:00]} 34. Qc8 {[%emt 0:00:28] Threatens to win with Re7+.} Qd5 {[%emt 0:00:00] [#]} (34... Kf7 $11 {remains equal.}) 35. Re8 $1 {[%emt 0:00:27][%cal Oe8g8]} Qf7 {[%emt 0:00:00] [#]} (35... d3 $2 36. Rg8+ Qxg8 37. Qxd7+ Qf7 38. Qxd3 $18) ({Black should play} 35... f5) 36. Rg8+ $3 {[%emt 0:00:56][%mdl 512]} Qxg8 {[%emt 0:00:00]} 37. Qxd7+ {[%emt 0:00:03] KQ-KQ} Qf7 {[%emt 0:00:00]} 38. Qxd4 {[%emt 0:00:12]} Qe6 {[%emt 0:00:51]} 39. Kg2 {[%emt 0:00:41]} a6 {[%emt 0:00:19]} (39... h5 $16 40. a4 Kf7) 40. h3 {[%emt 0:01:48]} Qb3 {[%emt 0:00:46]} (40... h5 {keeps fighting.} 41. b4 Kh8 42. Qd8+ Kg7) 41. Qg4+ {[%emt 0:01:24]} Kf8 {[%emt 0:01:23]} 42. Qd4 {[%emt 0:00:48]} ({Better is} 42. Qb4 $16 Qd5+ 43. Kh2) 42... Kf7 $2 {[%emt 0:00:37]} (42... Kg7 $1 $11 {and Black is okay.}) 43. Kh2 {[%emt 0:00:20]} (43. Qd7+ Kg6 $16) 43... Qc2 {[%emt 0:00:49]} 44. h4 {[%emt 0:00:13]} h5 {[%emt 0:00:58]} 45. Kg2 {[%emt 0:00:09]} Kg6 {[%emt 0:01:03]} 46. Qb4 {[%emt 0:00:37]} a5 {[%emt 0:00:34]} 47. Qd4 {[%emt 0:01:13]} ({But not} 47. Qxb7 $6 Qe4+ 48. Kf1 Qd3+ 49. Ke1 Qe4+ 50. Kd2 (50. Kf1 Qh1+ 51. Ke2 Qe4+ 52. Kd2 Qd4+ 53. Ke1 Qe4+ 54. Kd2 Qd5+ 55. Ke3 Qe6+ 56. Kf3 Qf5+ 57. Kg2 Qd5+ 58. Kf1 Qh1+ 59. Ke2 Qe4+ 60. Kf1 $11) 50... Qd4+ 51. Ke2 Qe4+ 52. Kd2 Qf3 $11) 47... Qb3 $2 {[%emt 0:02:26]} (47... Qe2 $16 48. b3 Kf5 49. Qf4+ Kg6) 48. Qe4+ $18 {[%emt 0:02:06]} Kg7 {[%emt 0:00:21]} 49. Qe7+ {[%emt 0:00:13]} Kg6 {[%emt 0:00:15]} 50. Qe8+ {[%emt 0:00:26]} Kg7 {[%emt 0:00:33]} 51. Qxh5 {[%emt 0:00:26]} Qxb2 {[%emt 0:00:17]} 52. Qg4+ {[%emt 0:00:07]} Kf7 $2 {[%emt 0:02:33]} (52... Kh6 53. Qf5 Qd4) 53. h5 {[%emt 0:02:14] White is clearly winning.} Qe5 {[%emt 0:01:13]} 54. Qd7+ {[%emt 0:00:20]} Kf8 {[%emt 0:00:45]} 55. Qd6+ {[%emt 0:02:19] Weighted Error Value: White=0.23 (precise) /Black=0.63  Loses game:     	---       	Black=3      Mistake:       	White=7     	Black=9      Inaccurate:     	White=3     	Black=4      OK:         	White=11    	Black=16     Best:        	White=6     	---        Strong:       	White=2     	---        Brilliant:      	White=1     	---} ({Weaker is} 55. Qxb7 Qxc5 56. Qc8+ Kg7 $16) 1-0

[Event "Marshall CC U2400 03-2025"]
[Site "New York"]
[Date "2025.03.22"]
[Round "2.7"]
[White "Chen, Shu"]
[Black "Bonin, Jay"]
[Result "1-0"]
[Annotator "NA RC"]
[ECO "B12"]
[WhiteElo "1533"]
[BlackElo "2120"]
[PlyCount "62"]
[EventDate "2025.03.20"]
[EventType "swiss"]
[EventCountry "USA"]
[SourceTitle "playchess.com"]
[Source "ChessBase"]
[SourceQuality "1"]
[TimeControl "5400+30"]

1. e4 {[%emt 0:11:19]} c6 {[%emt 0:00:06]} 2. d4 {[%emt 0:00:05]} a6 {[%emt 0:00:03]} 3. c4 {[%emt 0:02:36]} d6 {[%emt 0:00:11]} 4. Nf3 {[%emt 0:00:18]} Nf6 {[%emt 0:00:08]} 5. Bd3 {[%emt 0:00:24]} e5 {[%emt 0:00:38]} 6. O-O {[%emt 0:01:28]} Qc7 {[%emt 0:01:29]} 7. h3 {[%emt 0:01:04]} Nbd7 {[%emt 0:00:20]} 8. Be3 {[%emt 0:01:47]} Be7 {[%emt 0:02:30]} 9. a4 {[%emt 0:01:39]} a5 {[%emt 0:01:19]} 10. Nc3 {[%emt 0:01:10]} O-O {[%emt 0:01:36]} 11. Ne2 {[%emt 0:00:36]} exd4 {[%emt 1:27:40]} 12. Nexd4 {[%emt 0:02:21]} Nc5 {[%emt 0:00:00]} 13. Qc2 {[%emt 0:02:54]} Re8 {[%emt 0:00:00]} 14. Nf5 {[%emt 0:02:16]} Nxd3 {[%emt 0:00:00]} 15. Qxd3 {[%emt 0:00:34]} Bxf5 {[%emt 0:00:00]} 16. exf5 {[%emt 0:00:09]} d5 {[%emt 0:00:00]} 17. Rac1 {[%emt 0:02:39]} Rad8 {[%emt 0:00:00]} 18. Qb3 {[%emt 0:02:06]} dxc4 {[%emt 0:00:00]} 19. Rxc4 {[%emt 0:00:53]} Nd5 {[%emt 0:00:00]} 20. Bc5 {[%emt 0:05:42]} Bxc5 {[%emt 0:00:00]} 21. Rxc5 {[%emt 0:00:07]} Nf4 {[%emt 0:00:00]} 22. Kh1 {[%emt 0:07:19]} Rd3 {[%emt 0:00:00]} 23. Qc4 {[%emt 0:52:34]} Rxf3 {[%emt 0:00:00]} 24. gxf3 {[%emt 0:00:00]} Qd6 {[%emt 0:00:00]} 25. f6 {[%emt 0:01:00]} Qxf6 {[%emt 0:00:00]} 26. Rg1 {[%emt 0:00:00]} Qh6 {[%emt 0:00:00]} 27. Rg3 {[%emt 0:00:00]} Nxh3 {[%emt 0:00:00]} 28. Kg2 {[%emt 0:00:00]} Nf4+ {[%emt 0:00:00]} 29. Kf1 {[%emt 0:00:00]} Qh1+ {[%emt 0:00:00]} 30. Rg1 {[%emt 0:00:00]} Qh3+ {[%emt 0:00:00]} 31. Rg2 {[%emt 0:00:00]} Qxg2# {[%emt 0:10:00]} 1-0

[Event "Marshall CC U2400 03-2025"]
[Site "New York"]
[Date "2025.03.22"]
[Round "2.8"]
[White "Shen, Leo Xiaohang"]
[Black "Liu, Grant"]
[Result "1-0"]
[Annotator "NA RC"]
[ECO "C02"]
[WhiteElo "1968"]
[BlackElo "1771"]
[PlyCount "67"]
[EventDate "2025.03.20"]
[EventType "swiss"]
[EventCountry "USA"]
[SourceTitle "playchess.com"]
[Source "ChessBase"]
[SourceQuality "1"]
[TimeControl "5400+30"]

1. e4 {[%emt 0:00:01]} e6 {[%emt 0:00:06]} 2. d4 {[%emt 0:00:02]} d5 {[%emt 0:00:04]} 3. e5 {[%emt 0:00:03]} c5 {[%emt 0:00:05]} 4. c3 {[%emt 0:00:02]} Nc6 {[%emt 0:00:04]} 5. Nf3 {[%emt 0:00:04]} Qb6 {[%emt 0:00:04]} 6. a3 {[%emt 0:00:03]} Nh6 {[%emt 0:00:05]} 7. b4 {[%emt 0:00:04]} cxd4 {[%emt 0:00:21]} 8. cxd4 {[%emt 0:00:03]} Nf5 {[%emt 0:00:14]} 9. Be3 {[%emt 0:00:07]} Bd7 {[%emt 0:00:36]} 10. Be2 {[%emt 0:00:22]} Be7 {[%emt 0:01:10]} 11. O-O {[%emt 0:00:15]} h5 {[%emt 1:33:11]} 12. Nc3 {[%emt 0:00:29]} Rc8 {[%emt 0:00:00]} 13. Na4 {[%emt 0:02:09]} Qd8 {[%emt 0:00:00]} 14. Rc1 {[%emt 0:02:43]} b6 {[%emt 0:00:00]} 15. Bd3 {[%emt 0:01:52]} O-O {[%emt 0:00:00]} 16. Nc3 {[%emt 0:01:04]} Nxe3 {[%emt 0:00:00]} 17. fxe3 {[%emt 0:00:03]} g6 {[%emt 0:00:00]} 18. Ba6 {[%emt 0:02:07]} Rb8 {[%emt 0:00:00]} 19. Qd3 {[%emt 0:06:00]} Bc8 {[%emt 0:04:00]} 20. Bb5 {[%emt 0:00:42]} Bb7 {[%emt 0:00:00]} 21. Rf2 {[%emt 0:05:58]} Qd7 {[%emt 0:00:00]} 22. Ne2 {[%emt 0:01:55]} Rbc8 {[%emt 0:00:00]} 23. Rcf1 {[%emt 0:06:05]} Kg7 {[%emt 0:00:00]} 24. Nf4 {[%emt 0:01:02]} Ra8 {[%emt 0:00:00]} 25. Ba4 {[%emt 0:01:26]} a6 {[%emt 0:00:00]} 26. Bc2 {[%emt 0:00:27]} Qe8 {[%emt 0:00:00]} 27. Nxh5+ {[%emt 0:01:00]} Kh7 {[%emt 0:00:00]} 28. Ng5+ {[%emt 0:02:48]} Bxg5 {[%emt 0:00:00]} 29. Rxf7+ {[%emt 0:00:04]} Rxf7 {[%emt 0:00:00]} 30. Qxg6+ {[%emt 0:00:04]} Kh8 {[%emt 0:00:00]} 31. Rxf7 {[%emt 0:00:06]} Bxe3+ {[%emt 0:00:00]} 32. Kh1 {[%emt 0:00:07]} Qg8 {[%emt 0:00:00]} 33. Rh7+ {[%emt 0:00:09]} Qxh7 {[%emt 0:00:00]} 34. Qxh7# {[%emt 0:00:05]} 1-0

[Event "Marshall CC U2400 03-2025"]
[Site "New York"]
[Date "2025.03.22"]
[Round "2.9"]
[White "Stark, Chloe A"]
[Black "Le, Quan Anh"]
[Result "1-0"]
[Annotator "TA"]
[ECO "C47"]
[WhiteElo "1711"]
[BlackElo "2127"]
[PlyCount "93"]
[EventDate "2025.03.20"]
[EventType "swiss"]
[EventCountry "USA"]
[SourceTitle "playchess.com"]
[Source "ChessBase"]
[SourceQuality "1"]
[TimeControl "5400+30"]

{[%evp 17,93,0,0,0,0,0,0,0,0,0,0,-6,-8,0,12,0,12,-6,29,29,54,0,34,33,27,28,100,89,93,101,88,81,89,93,75,3,375,369,1978,1972,29995,29996,29996,29996,29996,29997,29997,29997,29997,29988,29988,3514,29987,29988,29988,29989,29989,29990,29990,29977,29976,29943,29978,29979,29994,29987,29987,29983,29983,29984,29983,29984,29983,29985,29985,29986,29990,29990]} 1. e4 {[%emt 0:00:01]} e5 {[%emt 0:09:47]} 2. Nf3 {[%emt 0:00:02]} Nc6 {[%emt 0:00:06]} 3. d4 {[%emt 0:00:05]} exd4 {[%emt 0:00:05]} 4. Nxd4 {[%emt 0:00:06]} Nf6 {[%emt 0:00:05]} 5. Nxc6 {[%emt 0:00:05]} bxc6 {[%emt 0:00:04]} 6. Nc3 {[%emt 0:00:05]} Bb4 {[%emt 0:00:06]} 7. Bd3 {[%emt 0:00:13]} d5 {[%emt 0:00:07]} 8. exd5 {[%emt 0:00:45]} O-O {[%emt 0:00:09]} 9. O-O {[%emt 0:03:33]} cxd5 {[%emt 0:00:09]} 10. h3 {[%emt 0:00:25] is the new trend. Prevents Bg4. C47: Scotch Four Knights and Four Knights with 4 g3.} c6 {[%emt 0:00:05]} 11. Qf3 {[%emt 0:00:12]} Re8 {[%emt 0:03:13]} 12. Bf4 {[%emt 0:00:46] The position is equal.} Bd6 {[%emt 0:00:25]} 13. Rfe1 {[%emt 0:01:32]} Be6 {[%emt 0:00:32]} 14. Bxd6 {[%emt 0:07:34]} Qxd6 {[%emt 0:00:11]} 15. b3 {[%emt 0:00:51]} a5 $146 {[%emt 0:00:35]} (15... c5 16. Bf5 Rad8 17. Rad1 h6 18. Na4 Nd7 19. Bxe6 fxe6 20. Nb2 Nf6 {0-1 Ramesh,R (2215)-Kumaran,D (2385) Wch U18 Bratislava 1993 (7)}) 16. Rad1 {[%emt 0:02:50]} Qb8 {[%emt 0:05:53]} 17. Ne2 {[%emt 0:05:32]} c5 {[%emt 0:02:45]} 18. Nf4 {[%emt 0:00:29]} a4 {[%emt 0:00:39]} 19. c4 {[%emt 0:07:17]} ({White should try} 19. Re3 $14) 19... d4 {[%emt 0:01:17]} 20. Nxe6 {[%emt 0:01:58]} fxe6 {[%emt 0:01:55]} 21. bxa4 {[%emt 0:03:41]} Rxa4 {[%emt 0:00:41]} (21... Qd6 $11 {keeps the balance.}) 22. Qc6 $16 {[%emt 0:00:55][%csl LRa4,LRc5,LRe6]} Rxa2 {[%emt 0:03:08]} 23. Rxe6 {[%emt 0:05:17]} ({Don't do} 23. Qxc5 Qf4 24. Rf1 e5 $11) 23... Rc8 {[%emt 0:02:02]} 24. Qf3 {[%emt 0:02:14] Rb1 is the strong threat.} Rf8 {[%emt 0:00:51]} 25. Rde1 $36 {[%emt 0:04:45][%mdl 2048] Black is under strong pressure.} Ra7 {[%emt 0:15:13]} 26. g4 {[%emt 0:09:34] White is more active.} (26. Qf5 $16) 26... Qd8 $2 {[%emt 0:30:31][%mdl 8192] Loses the game.} (26... Nh5 $1 $11 27. Qe4 Nf6) 27. g5 $18 {[%emt 0:03:01][%cal Bg4g5,Bg5g6][%mdl 32] Black is weak on the light squares} Ne8 {[%emt 0:02:10] [#]} (27... Ne4 28. Qxe4 Qxg5+ 29. Kf1 Qh5) 28. Bxh7+ $1 {[%emt 0:00:46][%mdl 512]} Kh8 {[%emt 0:02:51][%cal Bg8h8,Bh8h7,Bh7h6,Bh6g5,Bg5g4,Bg4h3,Bh3h4][%mdl 32]} (28... Kxh7 29. Qh5+) 29. Qxf8+ {[%emt 0:00:31]} Kxh7 {[%emt 0:00:04]} 30. g6+ {[%emt 0:00:17]} Kh6 {[%emt 0:00:10]} 31. Qh8+ {[%emt 0:01:10]} Kg5 {[%emt 0:00:06]} 32. h4+ {[%emt 0:00:15]} Kg4 {[%emt 0:00:25]} 33. R1e4+ {[%emt 0:00:09]} Kh3 {[%emt 0:00:24]} 34. Qxe8 {[%emt 0:01:33]} (34. Qh5 $142 Ra1+ 35. Re1 Rxe1+ 36. Rxe1 Nd6 37. Qf3+ (37. Qxc5 Qa8 $18) 37... Kxh4 38. Qg3+ (38. Re5 Qg5+ 39. Rxg5 Kxg5 $18) 38... Kh5 39. Re5+ Kh6 40. Qg4 (40. Rxc5 Qe7 $18)) 34... Qc7 {[%emt 0:05:33] [#]} 35. Re3+ $3 {[%emt 0:02:23] White mates.} dxe3 {[%emt 0:00:32]} 36. Rxe3+ {[%emt 0:00:05]} Kxh4 {[%emt 0:03:54] KQR-KQR. White is a pawn up.} 37. Qe4+ {[%emt 0:00:26]} Kg5 {[%emt 0:00:10]} 38. Rg3+ {[%emt 0:00:43]} Qxg3+ {[%emt 0:01:53]} 39. fxg3 {[%emt 0:00:03] KQ-KR} Ra5 {[%emt 0:01:04]} 40. Kg2 {[%emt 0:00:08]} Kh6 {[%emt 0:00:41]} 41. Kh3 {[%emt 0:00:10]} Kg5 {[%emt 0:00:14]} 42. Qe6 {[%emt 0:01:04]} Ra2 {[%emt 0:02:34]} 43. Qd5+ {[%emt 0:01:15]} Kxg6 {[%emt 0:02:53]} 44. Qxc5 {[%emt 0:00:04]} Kf6 {[%emt 0:00:32]} 45. Qd6+ {[%emt 0:00:09]} Kf5 {[%emt 0:00:09]} 46. c5 {[%emt 0:00:17]} Rb2 {[%emt 0:00:40]} 47. Qd4 {[%emt 0:00:51][%csl LRb2,LRg7] Weighted Error Value: White=0.24 (precise) /Black=0.84  Loses game:     	---       	Black=1      Mistake:       	White=2     	Black=2      Inaccurate:     	---       	Black=3      OK:         	White=7     	Black=6      Best:        	White=3     	Black=1      Brilliant:      	White=1     	---} 1-0